Workbook

Sheet testo

Sheet dati
G1: Costante | H1: Reddito | I1: Sesso | J1: Acquisto | L1: Osservazione: il reddito è espresso in migliaia di Euro | O1: eta_i=x_i^T*Beta | P1: yi*x_i^T*beta-log(1+e^x_i^Tbeta)
D2: beta0 | E2: -9.842942588 | G2: 1 | H2: 37 | I2: 0 | J2: 0 | O2: =MMULT(G2:I2,E$2:E$4) -> -3.994785002 | P2: =J2*O2-LN(1+EXP(O2)) -> -0.01824396655
D3: beta1 | E3: 0.1580583131 | G3: 1 | H3: 39 | I3: 0 | J3: 0 | L3: Sesso=1 corrisponde a maschio | O3: =MMULT(G3:I3,E$2:E$4) -> -3.678668376 | P3: =J3*O3-LN(1+EXP(O3)) -> -0.02494290784 | R3: Variabili nell'equazione
D4: beta2 | E4: 3.489827989 | G4: 1 | H4: 39 | I4: 0 | J4: 0 | O4: -3.678668376 | P4: -0.02494290784 | S4: B | T4: E.S. | U4: Wald | V4: df | W4: Sig. | X4: Exp(B) | Y4: 95% CI per EXP(B)
G5: 1 | H5: 42 | I5: 0 | J5: 0 | O5: -3.204493436 | P5: -0.03977772388 | Y5: Inferiore | Z5: Superiore
E6: 6 | G6: 1 | H6: 47 | I6: 0 | J6: 0 | O6: -2.41420187 | P6: -0.08566260407 | Q6: 1 | R6: =TRANSPOSE(G1:I1) -> Costante | S6: =E2:E4 -> -9.842942588 | T6: =SQRT(INDEX(D$8:F$10,Q6,Q6)) -> 3.675768163 | U6: =(S6/T6)^2 -> 7.170570006 | V6: 1 | W6: =1-_xlfn.CHISQ.DIST(U6,1,1) -> 0.007410922371 | X6: =EXP(S6) -> 5.312076837e-05 | Y6: =EXP($S6+S$10*$T6) -> 3.948615223e-08 | Z6: 0.07146343395
G7: 1 | H7: 48 | I7: 0 | J7: 0 | O7: -2.256143557 | P7: -0.09962239915 | Q7: 2 | R7: Reddito | S7: 0.1580583131 | T7: =SQRT(INDEX(D$8:F$10,Q7,Q7)) -> 0.06163834204 | U7: =(S7/T7)^2 -> 6.575560659 | V7: 1 | W7: =1-_xlfn.CHISQ.DIST(U7,1,1) -> 0.0103388431 | X7: =EXP(S7) -> 1.171234491 | Y7: 1.037951836 | Z7: 1.321631877
D8: 13.51127159 | E8: -0.2237472034 | F8: -3.612439358 | G8: 1 | H8: 48 | I8: 0 | J8: 1 | O8: -2.256143557 | P8: -2.355765956 | Q8: 3 | R8: Sesso | S8: 3.489827989 | T8: 1.199170053 | U8: 8.469280059 | V8: 1 | W8: 0.003611943587 | X8: 32.78030866 | Y8: 3.125198726 | Z8: 343.8336983
D9: -0.2237472034 | E9: 0.003799285209 | F9: 0.05566247958 | G9: 1 | H9: 52 | I9: 0 | J9: 0 | L9: Funzione log verosimiglianza utilizzando beta cappello (log L(\hat \beta)) | O9: -1.623910305 | P9: -0.1799239898
D10: -3.612439358 | E10: 0.05566247958 | F10: 1.438008817 | G10: 1 | H10: 53 | I10: 0 | J10: 0 | O10: -1.465851992 | P10: -0.2077303347 | R10: tgam= | S10: =-T10 -> -1.959963985 | T10: =_xlfn.NORM.S.INV(0.975) -> 1.959963985
G11: 1 | H11: 55 | I11: 0 | J11: 0 | L11: =SUM(P2:P41) -> -19.45834681 | O11: -1.149735365 | P11: -0.2751442314
G12: 1 | H12: 56 | I12: 0 | J12: 0 | O12: -0.9916770521 | P12: -0.3155068915
G13: 1 | H13: 57 | I13: 0 | J13: 0 | L13: -2log(verosimiglianza) = scaled deviance | O13: -0.833618739 | P13: -0.3607983636
G14: 1 | H14: 58 | I14: 0 | J14: 0 | L14: =-2*L11 -> 38.91669363 | O14: -0.6755604258 | P14: -0.4113617925 | R14: Riepilogo del modello
G15: 1 | H15: 58 | I15: 0 | J15: 1 | O15: -0.6755604258 | P15: -1.086922218 | R15: -2 log verosimiglianza | S15: R-quadrato di Cox e Snell | T15: Rquadrato di Nagelkerke
D16: ymedio | E16: =AVERAGE(J2:J41) -> 0.5 | G16: 1 | H16: 60 | I16: 0 | J16: 0 | L16: Funzione verosimiglianza utilizzando beta cappello | O16: -0.3594437995 | P16: -0.5294890624
B17: Stima intercetta nel modello senza le variabili esplicative "Sesso" e Reddito" | E17: =LN(E16/(1-E16)) -> 0 | G17: 1 | H17: 64 | I17: 0 | J17: 0 | L17: =EXP(L11) -> 3.542805841e-09 | O17: 0.2727894531 | P17: -0.8388149692
G18: 1 | H18: 65 | I18: 0 | J18: 1 | L18: R-quadrato di Cox e Snell | O18: 0.4308477662 | P18: -0.5007497414 | R18: =L14 -> 38.91669363 | S18: =L19 -> 0.3385871304 | T18: =L19 -> 0.3385871304
G19: 1 | H19: 68 | I19: 0 | J19: 1 | L19: =1-(EXP(L35)/L17)^(2/40) -> 0.3385871304 | O19: 0.9050227056 | P19: -0.3397046495
G20: 1 | H20: 68 | I20: 0 | J20: 1 | O20: 0.9050227056 | P20: -0.3397046495
G21: 1 | H21: 70 | I21: 0 | J21: 1 | O21: 1.221139332 | P21: -0.2584288334 | R21: Commento:
G22: 1 | H22: 34 | I22: 1 | J22: 1 | L22: Funzione di log verosimiglianza scritta in maniera matriciale | O22: -0.9791319518 | P22: -1.298048869 | R22: Commento di 3.49= a parità di reddito annuo del consumatore la stima del logit è 3.49 volte più alta nel gruppo dei maschi
G23: 1 | H23: 38 | I23: 1 | J23: 1 | O23: -0.3468986993 | P23: -0.8815640443 | R23: Commento di 32.78= controllando l'effetto del reddito, l'odds di acquisto dei maschi è quasi 33 volte superiore a all'odds di acquisto tra le femmine
G24: 1 | H24: 40 | I24: 1 | J24: 0 | O24: -0.03078207298 | P24: -0.6778745814 | R24: Commento di 1.171=a parità di sesso del consumatore, ad un aumento di 1000 Euro del reddito annuo corrisponde una variazione positiva nell'odds di acquisto del 17% circa
G25: 1 | H25: 40 | I25: 1 | J25: 0 | O25: -0.03078207298 | P25: -0.6778745814
G26: 1 | H26: 41 | I26: 1 | J26: 0 | O26: 0.1272762402 | P26: -0.7588088405
G27: 1 | H27: 43 | I27: 1 | J27: 1 | O27: 0.4433928664 | P27: -0.4958266967
G28: 1 | H28: 43 | I28: 1 | J28: 1 | O28: 0.4433928664 | P28: -0.4958266967
G29: 1 | H29: 43 | I29: 1 | J29: 1 | O29: 0.4433928664 | P29: -0.4958266967
G30: 1 | H30: 44 | I30: 1 | J30: 0 | O30: 0.6014511796 | P30: -1.038425155
G31: 1 | H31: 46 | I31: 1 | J31: 0 | O31: 0.9175678059 | P31: -1.253675331
G32: 1 | H32: 47 | I32: 1 | J32: 1 | O32: 1.075626119 | P32: -0.2934783385
G33: 1 | H33: 48 | I33: 1 | J33: 1 | O33: 1.233684432 | P33: -0.2555856701 | R33: Tutte le variabili sono significative al 5%
G34: 1 | H34: 48 | I34: 1 | J34: 1 | L34: Funzione di log verosimiglianza con solo l'intercetta (log L(0) ) | O34: 1.233684432 | P34: -0.2555856701 | R34: Il sesso è la variabile più importante per spiegare le differenze di comportamento nell'aquisto del bene in esame
G35: 1 | H35: 50 | I35: 1 | J35: 0 | L35: =-40*LN(2) -> -27.72588722 | O35: 1.549801058 | P35: -1.742312359 | R35: Il valore della devianza (circa 39) deve essere confrontato con quello di una Chi^2 con 37 gradi di libertà.
G36: 1 | H36: 50 | I36: 1 | J36: 1 | O36: 1.549801058 | P36: -0.1925113004 | R36: Dato che E(Chi^2(38)=38 il valore ottenuto è perfettamente in linea con le attese
G37: 1 | H37: 52 | I37: 1 | J37: 1 | L37: =LN((L17/L35)^2) -> -45.56142669 | O37: 1.865917685 | P37: -0.1438874462 | R37: Il pvalue è: | S37: =_xlfn.CHISQ.DIST.RT(R18,37) -> 0.3834831987
G38: 1 | H38: 55 | I38: 1 | J38: 1 | O38: 2.340092624 | P38: -0.09195794586 | R38: Osservazione: il valore della devianza è anche il valore del test che confronta la verosimiglianza del modello saturo con la verosimiglianza del modello corrente. Di conseguenza dall'esame del p-value risulta che non vi sono motivi statistici per preferire il modello saturo (che fornirebbe un adattamento perfetto) a quello effettivamente stimato
G39: 1 | H39: 60 | I39: 1 | J39: 1 | L39: Test omnibus dei coefficenti del modello -2(log L(0) - log L(\hat \beta)) | O39: 3.13038419 | P39: -0.04277305433
G40: 1 | H40: 61 | I40: 1 | J40: 1 | O40: 3.288442503 | P40: -0.03663267222
G41: 1 | H41: 61 | I41: 1 | J41: 1 | O41: 3.288442503 | P41: -0.03663267222
L42: =-2*(L35-L11) -> 16.53508082
L43: pvalue=
L44: =_xlfn.CHISQ.DIST.RT(L42,2) -> 0.0002567159316
L45: Rifiuto decisamente l'ipotesi che il modello corrente con le variabili esplicative sesso e reddito non siano importanti nello spiegare il comportamento di acquisto
L51: Test di Wald
L52: =MMULT(TRANSPOSE(beta),MMULT(MINVERSE(D8:F10),beta)) -> 8.849846027 | M52: =_xlfn.CHISQ.DIST.RT(L52,2) -> 0.01197513319
L53: Valore al limite della significatività.
L54: Il risultato di questo test non è assolutamente in accordo con quello del test omnibus
